[Event "CIS Master Groups 2024"]
[Site "Vasto"]
[Date "2024.04.11"]
[Round "5.10"]
[White "Seresin, Francesco"]
[Black "David, Alberto"]
[Result "1/2-1/2"]
[ECO "E32"]
[WhiteElo "2336"]
[BlackElo "2512"]
[Annotator "TA"]
[PlyCount "180"]
[EventDate "2024.04.07"]
[EventType "team-tourn"]
[EventCountry "ITA"]
[SourceTitle "playchess.com"]
[Source "ChessBase"]
[SourceQuality "1"]
[TimeControl "40/5400+30:900+30"]

{[%evp 22,180,22,13,8,-43,-60,-52,-46,-53,-38,-52,-45,-64,-48,-68,-26,-26,-31,-116,-116,-126,-119,-133,-121,-143,-2,-6,-18,-8,0,0,0,-62,-61,-60,-60,-58,-57,-55,-53,-62,-61,-66,-68,-66,0,0,0,0,0,0,0,0,0,0,0,0,0,0,0,0,0,0,0,0,0,0,0,0,0,0,0,0,0,0,0,0,0,0,0,0,0,0,0,0,0,0,0,0,0,0,0,0,0,0,0,0,0,0,0,0,0,0,0,0,0,0,0,0,0,0,0,0,0,0,0,0,0,0,0,0,0,0,0,0,0,0,0,0,0,0,0,0,0,0,0,0,0,0,0,0,0,0,0,0,0,0,0,0,0,0,0,0,0,0,0,0,0,0,0]} 1. d4 {[%emt 0:02:50]} Nf6 {[%emt 0:00:14]} 2. c4 {[%emt 0:00:35]} e6 {[%emt 0:00:08]} 3. Nc3 {[%emt 0:00:09]} Bb4 {[%emt 0:00:10]} 4. Qc2 {[%emt 0:01:01]} d6 {[%emt 0:00:32]} 5. Nf3 {[%emt 0:04:52]} O-O {[%emt 0:00:22]} 6. Bd2 {[%emt 0:00:20]} b6 {[%emt 0:00:32]} 7. a3 {[%emt 0:02:29]} Bxc3 {[%emt 0:00:12]} 8. Bxc3 {[%emt 0:00:10]} Bb7 {[%emt 0:00:17]} 9. b4 {[%emt 0:02:40]} Nbd7 {[%emt 0:08:27]} 10. e3 {[%emt 0:00:43]} Ne4 {[%emt 0:00:11]} 11. Bb2 {[%emt 0:00:22]} f5 {[%emt 0:10:08]} 12. Be2 {[%emt 0:02:37]} Ng5 {[%emt 0:28:32]} 13. Nxg5 {[%emt 0:17:12]} (13. d5 $11) 13... Qxg5 $15 {[%emt 0:00:12]} 14. Bf3 {[%emt 0:00:06]} Bxf3 {[%emt 0:06:31] Black is slightly better.} 15. gxf3 {[%emt 0:00:25]} Qh5 {[%emt 0:01:36]} 16. Qe2 {[%emt 0:05:02]} c6 {[%emt 0:07:21]} 17. a4 {[%emt 0:13:48]} d5 {[%emt 0:08:59]} 18. f4 {[%emt 0:06:37]} Qxe2+ {[%emt 0:05:39]} 19. Kxe2 {[%emt 0:00:46]} dxc4 {[%emt 0:00:04]} 20. b5 {[%emt 0:01:03]} (20. Rhc1 $1 $15) 20... Rfc8 $17 {[%emt 0:01:22]} 21. Rhc1 {[%emt 0:04:08] [#]} Nf6 $1 {[%emt 0:01:36]} 22. Rc2 {[%emt 0:13:10]} ({Much weaker is} 22. Rxc4 cxb5 23. Rcc1 bxa4 24. Rxa4 a5 $19) 22... cxb5 {[%emt 0:12:45]} 23. axb5 {[%emt 0:00:33] [#]} a6 {[%emt 0:00:06]} 24. Rxa6 $11 {[%emt 0:05:31]} Rxa6 {[%emt 0:00:09]} 25. bxa6 {[%emt 0:00:04][%mdl 4096] Endgame. KRB-KRN} b5 {[%emt 0:00:05]} (25... Ra8 26. Rxc4 Rxa6 27. Rc8+ Kf7 28. Rc7+ Kg6 29. Rc6) 26. d5 $1 {[%emt 0:00:38]} Nxd5 {[%emt 0:00:14] White must now prevent ...c3.} 27. Bd4 {[%emt 0:00:34]} ({White should try} 27. a7 $1 $11) 27... Nb4 $15 {[%emt 0:02:37][%csl LRa6,LRc2]} 28. Rb2 {[%emt 0:01:16]} Nxa6 {[%emt 0:00:05] Hoping for ...c3.} 29. Rxb5 {[%emt 0:00:05]} c3 $1 {[%emt 0:00:10][%cal Bc4c3,Bc3c2][%mdl 32]} 30. Kd1 {[%emt 0:00:56]} c2+ {[%emt 0:00:04]} 31. Kc1 {[%emt 0:00:19]} Rc4 {[%emt 0:00:04] ...Nb4 is the strong threat.} 32. Rb3 {[%emt 0:03:41]} Nb4 {[%emt 0:00:20] ( -> ...Na2+)} 33. Bc3 {[%emt 0:00:36]} Na2+ {[%emt 0:05:56]} (33... Nd3+ $15 34. Kxc2 Nxf2 35. Rb8+ Kf7 36. Rb7+ Ke8) 34. Kxc2 $11 {[%emt 0:00:11] The position is equal.} Nxc3 {[%emt 0:00:24]} 35. Rxc3 {[%emt 0:00:06] KR-KR} Ra4 {[%emt 0:00:02]} 36. Kd2 {[%emt 0:01:09]} Ra1 {[%emt 0:00:34]} 37. Rc1 {[%emt 0:00:22]} Ra2+ {[%emt 0:00:31]} 38. Rc2 {[%emt 0:00:06]} Ra1 {[%emt 0:00:07]} 39. Rc1 {[%emt 0:00:04]} Ra2+ {[%emt 0:02:10]} 40. Rc2 {[%emt 0:00:10]} Ra7 {[%emt 0:00:14]} 41. Ke2 {[%emt 0:15:37]} Kf7 {[%emt 0:15:28]} 42. Kf3 {[%emt 0:00:15]} Kf6 {[%emt 0:00:18]} 43. Kg2 {[%emt 0:00:58]} h6 {[%emt 0:00:47]} 44. Rc6 $1 {[%emt 0:02:03]} g5 {[%emt 0:00:16]} 45. fxg5+ {[%emt 0:00:16]} hxg5 {[%emt 0:00:05]} 46. h3 {[%emt 0:00:13]} Ra4 {[%emt 0:00:12]} 47. Rb6 {[%emt 0:01:19]} Rc4 {[%emt 0:00:40]} 48. Ra6 {[%emt 0:00:17]} Ke5 {[%emt 0:00:19]} 49. Kf3 {[%emt 0:01:10]} Rb4 {[%emt 0:00:08]} 50. Ra5+ {[%emt 0:01:36]} Kf6 {[%emt 0:00:03]} 51. Ra6 {[%emt 0:00:05]} Rh4 {[%emt 0:00:06]} 52. Kg3 $1 {[%emt 0:00:21]} Rh7 {[%emt 0:00:08]} 53. Rb6 {[%emt 0:00:25]} Rh8 {[%emt 0:00:08]} 54. Ra6 $1 {[%emt 0:00:10]} Rc8 {[%emt 0:01:02]} 55. Kf3 {[%emt 0:00:37]} Rc4 {[%emt 0:00:06]} 56. Rb6 {[%emt 0:00:21]} Rc2 {[%emt 0:00:06]} 57. Ra6 $1 {[%emt 0:00:17]} Rb2 {[%emt 0:00:14]} 58. Rc6 {[%emt 0:00:09]} Rb5 {[%emt 0:00:10]} 59. Rc8 {[%emt 0:00:35]} Rb7 {[%emt 0:00:34]} 60. Rf8+ {[%emt 0:00:49]} Kg7 {[%emt 0:00:17]} 61. Ra8 {[%emt 0:00:27]} Rd7 {[%emt 0:00:37]} 62. Re8 {[%emt 0:00:38]} Kf7 {[%emt 0:00:04]} 63. Ra8 {[%emt 0:00:03]} Kg7 {[%emt 0:00:04]} 64. Re8 {[%emt 0:00:05]} Kf6 {[%emt 0:00:02]} 65. Rf8+ {[%emt 0:00:08]} Rf7 {[%emt 0:00:46]} 66. Rg8 {[%emt 0:00:30]} Rg7 {[%emt 0:00:12]} 67. Rf8+ {[%emt 0:00:13]} Ke5 {[%emt 0:00:05]} 68. Ra8 {[%emt 0:00:12]} Rh7 {[%emt 0:00:06]} 69. Ra5+ {[%emt 0:00:35]} Kf6 {[%emt 0:00:05]} 70. Kg3 {[%emt 0:00:10]} Rh4 {[%emt 0:00:35]} 71. Ra8 {[%emt 0:00:29]} Rb4 {[%emt 0:01:34]} 72. Kf3 {[%emt 0:00:21]} g4+ {[%emt 0:00:16]} 73. hxg4 {[%emt 0:00:05]} Rxg4 {[%emt 0:00:04]} 74. Rf8+ {[%emt 0:00:16]} Ke5 {[%emt 0:00:05]} 75. Ra8 {[%emt 0:00:04]} Rb4 {[%emt 0:00:04]} 76. Ra5+ {[%emt 0:00:12]} Kf6 {[%emt 0:00:04]} 77. Rc5 {[%emt 0:00:39]} Ra4 {[%emt 0:00:05]} 78. Rb5 {[%emt 0:00:05]} Rh4 {[%emt 0:00:05]} 79. Ra5 $1 {[%emt 0:00:08]} Rh3+ {[%emt 0:00:03]} 80. Kg2 {[%emt 0:00:05]} Rh4 {[%emt 0:00:03]} 81. Kf3 {[%emt 0:00:04]} e5 {[%emt 0:00:12][%cal Be6e5,Be5e4][%mdl 32]} 82. Ra6+ {[%emt 0:00:59]} Kg5 {[%emt 0:01:37]} 83. Re6 {[%emt 0:00:30]} e4+ {[%emt 0:00:12]} 84. Ke2 {[%emt 0:00:21]} Rh2 {[%emt 0:00:38]} 85. Re8 {[%emt 0:00:22]} Kf6 {[%emt 0:00:09]} 86. Rf8+ {[%emt 0:00:11]} Ke6 {[%emt 0:00:05]} 87. Re8+ $1 {[%emt 0:00:06]} Kf6 {[%emt 0:00:05]} 88. Rf8+ {[%emt 0:00:04]} Ke6 {[%emt 0:00:01]} 89. Re8+ {[%emt 0:00:07]} Kf6 {[%emt 0:00:02]} 90. Rf8+ {[%emt 0:00:50]} Ke6 {[%emt 0:00:03] Weighted Error Value: White=0.09 (flawless) /Black=0.11 (very precise) .  Mistake:       	White=3     	Black=2      Inaccurate:     	---       	Black=1      OK:         	White=23    	Black=22     Best:        	White=7     	Black=6      Strong:       	White=7     	Black=2} 1/2-1/2

[Event "CIS Master Groups 2024"]
[Site "Vasto"]
[Date "2024.04.11"]
[Round "5.11"]
[White "Altini, Nicola"]
[Black "Boraso, Alessio"]
[Result "1/2-1/2"]
[ECO "D37"]
[WhiteElo "2393"]
[BlackElo "2291"]
[Annotator "TA"]
[PlyCount "74"]
[EventDate "2024.04.07"]
[EventType "team-tourn"]
[EventCountry "ITA"]
[SourceTitle "playchess.com"]
[Source "ChessBase"]
[SourceQuality "1"]
[TimeControl "40/5400+30:900+30"]

{[%evp 11,74,20,18,13,27,0,0,12,14,-13,-8,-27,-21,-29,-38,-43,-49,-38,-34,-91,-76,-88,-71,-82,-35,-25,-15,-61,-19,-19,-2,-34,0,0,0,0,0,0,187,0,0,0,181,132,165,0,0,0,0,0,0,0,0,0,0,0,0,-5,0,-57,0,-15,0,-57,0]} 1. d4 {[%emt 0:00:01]} Nf6 {[%emt 0:02:07]} 2. c4 {[%emt 0:00:03][%cal Bc2c4,Bc4c5][%mdl 32]} e6 {[%emt 0:00:06]} 3. Nf3 {[%emt 0:00:05]} d5 {[%emt 0:00:14]} 4. Nc3 {[%emt 0:00:03]} Be7 {[%emt 0:00:30]} 5. Bf4 {[%emt 0:00:04]} O-O {[%emt 0:00:40]} 6. e3 {[%emt 0:00:02]} Nbd7 {[%emt 0:00:14]} 7. c5 {[%emt 0:04:28]} Ne4 {[%emt 0:00:33]} 8. Rc1 {[%emt 0:04:25]} f5 {[%emt 0:01:00]} 9. h4 {[%emt 0:06:59] The position is equal.} c6 {[%emt 0:00:46]} 10. Bd3 {[%emt 0:06:30]} b6 {[%emt 0:01:15]} 11. cxb6 {[%emt 0:02:43]} axb6 {[%emt 0:03:02]} 12. a3 {[%emt 0:04:04]} Nxc3 {[%emt 0:01:46]} 13. Rxc3 {[%emt 0:00:22]} c5 {[%emt 0:00:13]} 14. Bb5 {[%emt 0:11:09]} c4 {[%emt 0:09:37]} 15. Bxd7 {[%emt 0:04:56]} (15. Rc1 $15) 15... Bxd7 $17 {[%emt 0:00:35]} 16. Bg5 {[%emt 0:03:23]} b5 {[%emt 0:08:16]} 17. Ne5 {[%emt 0:10:06]} b4 {[%emt 0:05:01]} ({Black should try} 17... Be8 $17) 18. axb4 $15 {[%emt 0:00:34]} Ba4 {[%emt 0:03:04]} 19. Qf3 {[%emt 0:13:05]} (19. Qd2 $11 {feels stronger.}) 19... Bxg5 {[%emt 0:09:25]} 20. hxg5 {[%emt 0:00:08]} Qxg5 {[%emt 0:00:30]} 21. O-O {[%emt 0:06:49]} Qe7 {[%emt 0:04:55]} 22. Ra3 {[%emt 0:03:51]} Qxb4 {[%emt 0:06:41]} 23. Rfa1 {[%emt 0:05:59]} Qb5 $1 {[%emt 0:18:28] Dodges Nd7} 24. Qe2 {[%emt 0:06:29][%cal Ob2b3]} Qe8 $2 {[%emt 0:09:52] [#]} (24... Ra6 $1 $11 {and Black stays safe.}) 25. Qd2 $2 {[%emt 0:00:55]} (25. Qe1 $18) 25... Qb5 $1 $11 {[%emt 0:03:19]} 26. Qe2 {[%emt 0:00:20][%cal Ob2b3] Strongly threatening b3!} Qe8 $2 {[%emt 0:06:45]} (26... Ra6 $11 {and Black is okay.}) 27. Qe1 $18 {[%emt 0:00:04][%mdl 1024] White has strong compensation.} Qb5 {[%emt 0:01:01][%cal Of8b8] [#] Prevents Qb4} 28. R1a2 $2 {[%emt 0:03:16]} (28. Qf1 $1 $18 {[%cal Ob2b3] b3! would now be deadly.} Qe8 29. R1a2) 28... Ra6 {[%emt 0:01:18]} 29. Qa1 {[%emt 0:01:10][%cal Ra3a4]} Rfa8 $36 {[%emt 0:00:04][%mdl 2048] White is under pressure.} 30. Nf3 {[%emt 0:00:23]} Qc6 {[%emt 0:01:23]} 31. Ne5 {[%emt 0:00:25]} Qb5 {[%emt 0:01:08]} 32. Nf3 {[%emt 0:00:29]} R8a7 {[%emt 0:01:49]} 33. Ne5 {[%emt 0:01:28]} h6 {[%emt 0:00:39]} 34. Kh2 {[%emt 0:00:51]} Qe8 {[%emt 0:00:29]} 35. Qe1 {[%emt 0:01:07]} (35. b3 $1 $11 Qh5+ (35... cxb3 36. Rxb3 Bxb3 37. Rxa6 $11) 36. Kg1 cxb3 37. Rxb3) 35... Qb5 {[%emt 0:00:26]} 36. Qa1 $1 {[%emt 0:00:10]} Qe8 {[%emt 0:00:03]} 37. Qe1 {[%emt 0:00:12]} Qb5 {[%emt 0:00:29] Weighted Error Value: White=0.22 (precise) /Black=0.27 (precise) .  Loses game:     	---       	Black=2      Missed win:     	White=2     	---        Mistake:       	White=3     	Black=2      Inaccurate:     	White=2     	Black=3      OK:         	White=12    	Black=5      Best:        	White=3     	Black=1      Strong:       	White=1     	Black=2} (37... Qb8 $15) 1/2-1/2

[Event "CIS Master Groups 2024"]
[Site "Vasto"]
[Date "2024.04.11"]
[Round "5.12"]
[White "Titze, Leo"]
[Black "Collutiis, Duilio"]
[Result "1-0"]
[ECO "B00"]
[WhiteElo "2219"]
[BlackElo "2334"]
[Annotator "TA"]
[PlyCount "87"]
[EventDate "2024.04.07"]
[EventType "team-tourn"]
[EventCountry "ITA"]
[SourceTitle "playchess.com"]
[Source "ChessBase"]
[SourceQuality "1"]
[TimeControl "40/5400+30:900+30"]

1. e4 {[%emt 0:00:03]} Nc6 {[%emt 0:01:13]} 2. d4 {[%emt 0:02:04]} d5 {[%emt 0:00:56]} 3. e5 {[%emt 0:02:24]} f6 {[%emt 0:00:11]} 4. Bf4 {[%emt 0:04:10]} fxe5 {[%emt 0:05:11]} 5. dxe5 {[%emt 0:00:18]} Bf5 {[%emt 0:00:07]} 6. g4 $146 {[%emt 0:10:20] B00: Queen's Fianchetto Defence, Nimzowitsch Defence.} ({Predecessor:} 6. Nf3 e6 7. Bb5 Bc5 8. Nd4 Nge7 9. c3 O-O 10. Be3 Nxd4 11. cxd4 Bb4+ 12. Nc3 {½-½ Lindberg,B (2515)-Laveryd,P (2459) SWE-chT 0304 2003 (3)}) 6... Be6 {[%emt 0:01:16]} 7. h4 {[%emt 0:06:35]} Qd7 {[%emt 0:00:27]} 8. Be2 {[%emt 0:00:37]} g6 {[%emt 0:08:45]} 9. Nc3 {[%emt 0:20:23]} Bg7 {[%emt 0:11:44]} 10. h5 {[%emt 0:01:01]} Nh6 {[%emt 0:07:09]} (10... Bxe5 $2 11. Bxe5 Nf6 (11... Nxe5 $2 12. Qd4 $18) 12. Nf3 $18) (10... Nxe5 11. h6 Nxh6 (11... Bf6 12. g5 $16) 12. Bxh6 Bxh6 13. Rxh6 $15) (10... g5 $17 11. Bxg5) 11. Bxh6 $1 $11 {[%emt 0:04:27]} Bxh6 {[%emt 0:00:08]} 12. hxg6 {[%emt 0:00:05]} hxg6 {[%emt 0:04:39]} 13. g5 {[%emt 0:00:37]} Bg7 $1 {[%emt 0:00:02]} 14. Rxh8+ {[%emt 0:00:10]} Bxh8 {[%emt 0:00:01]} 15. f4 {[%emt 0:00:18]} O-O-O {[%emt 0:04:36]} 16. Qd2 {[%emt 0:01:19]} Bf5 {[%emt 0:02:09]} 17. Nd1 {[%emt 0:20:32]} e6 {[%emt 0:21:52]} (17... Bg7 $11) 18. Nf2 {[%emt 0:00:58]} (18. Ne3 $14) 18... Bg7 $11 {[%emt 0:00:26]} 19. O-O-O {[%emt 0:00:23]} Bf8 {[%emt 0:00:40]} 20. Bd3 {[%emt 0:04:21]} Nd4 {[%emt 0:07:21]} 21. Ne2 {[%emt 0:01:59]} Nxe2+ {[%emt 0:00:13]} 22. Bxe2 {[%emt 0:00:25]} Qa4 $1 {[%emt 0:02:19]} 23. Kb1 {[%emt 0:02:59]} Bb4 {[%emt 0:00:38]} 24. Qc1 {[%emt 0:00:09]} Rh8 {[%emt 0:00:06]} ({Black should play} 24... Bc5 $1 $15 25. Ng4 Rh8) 25. Bd3 $11 {[%emt 0:01:03]} Bxd3 {[%emt 0:02:59]} 26. Nxd3 {[%emt 0:00:08]} Be7 {[%emt 0:00:56]} 27. Rh1 {[%emt 0:03:19]} Rxh1 {[%emt 0:08:20]} 28. Qxh1 {[%emt 0:00:01]} Qd4 {[%emt 0:00:02]} (28... Qe8 $11) 29. a3 {[%emt 0:01:24]} c5 {[%emt 0:00:10]} 30. Qf3 {[%emt 0:09:00]} (30. Qh8+ $16 Kd7 31. Qb8) 30... c4 {[%emt 0:00:14]} 31. Nf2 $1 {[%emt 0:01:05]} Qd2 {[%emt 0:00:10]} 32. Ng4 {[%emt 0:01:49]} (32. Qh3 $1 $11 Qxf2 33. Qxe6+ Kd8 34. Qg8+ Kd7 (34... Kc7 35. Qf7 $11) 35. Qxd5+ Kc7 36. Qxc4+ Kd8 37. Qd5+ Ke8 38. Qg8+ Kd7 39. Qd5+ Ke8 40. Qg8+ Kd7 41. Qd5+ Ke8) 32... Bc5 {[%emt 0:00:39]} ({Better is} 32... d4 $17 {...d3 would now be deadly.} 33. Qf1 d3 34. cxd3 c3) 33. Nf6 {[%emt 0:00:39]} (33. Qf1 $1 $11) 33... Kc7 $2 {[%emt 0:01:50][%mdl 8192] [#]} (33... Qe3 $1 $15 {keeps the upper hand.} 34. Qg4 Qg1+ 35. Qxg1 Bxg1) 34. f5 $2 {[%emt 0:01:04]} (34. Qg4 $1 $18 {[%mdl 512]} d4 35. Qxe6 Qd1+ 36. Ka2 Qxc2 37. Qf7+ (37. Nd5+ Kd8 $18) 37... Kc6 38. Qe8+ Kb6 39. Nd7+ Kb5 40. Nxc5+ Kxc5 41. Qf8+ Kb5 42. Qb4+ Kc6 43. Qd6+ Kb5 44. Qd5+ (44. Qxd4 b6 $18) 44... Ka6 45. Qxd4 Qb3+ 46. Kb1 (46. Ka1 Kb5 $18)) 34... Qxg5 {[%emt 0:06:32]} (34... gxf5 35. Qh5 a6 (35... Qe1+ $2 36. Ka2 $18) 36. Qf7+ Kb6 37. Nd7+ (37. Qxe6+ Ka7 $18) 37... Kb5 38. a4+ (38. Qxe6 Be3 $18) 38... Kxa4 39. Nxc5+ Kb5 40. Nxb7 $18 (40. Nxe6 Qe1+ 41. Ka2 Qa5+ 42. Kb1 Qe1+ 43. Ka2 Qa5+ 44. Kb1 Qe1+ $11)) (34... exf5 $11 35. Qh1 (35. Nxd5+ Kb8 $11) 35... a6 (35... Qxg5 $2 36. Qh7+ Kb6 37. Nd7+ Kc6 38. Nxc5 $18) (35... Kc6 $2 36. Qh8 $16)) 35. fxe6 $16 {[%emt 0:00:18]} Qxe5 {[%emt 0:00:10] [#]} 36. Nxd5+ {[%emt 0:00:18]} (36. Qxd5 $2 {too greedy.} Qxd5 37. Nxd5+ Kd6 $19) (36. Nd7 $1 $16 {[%cal Rd7e5]} Qe1+ 37. Ka2) 36... Kd6 $2 {[%emt 0:00:21][%mdl 8192]} (36... Kb8 $11) 37. e7 $18 {[%emt 0:01:20]} Kd7 {[%emt 0:00:02] [#]} 38. Qg4+ $1 {[%emt 0:00:50]} Qf5 {[%emt 0:00:52]} 39. Qxc4 {[%emt 0:00:07]} (39. Qe2 $142 Qxd5 40. e8=Q+ (40. e8=B+ Kc7 $14) 40... Kc7 41. Qb5 (41. Qxg6 a6 $18)) 39... Bxe7 $18 {[%emt 0:00:50]} 40. Qc7+ {[%emt 0:00:09]} Ke6 {[%emt 0:00:09]} 41. Nxe7 {[%emt 0:15:24]} Qf7 $2 {[%emt 0:15:40]} (41... Qf1+ 42. Ka2 Qf7) 42. Qxb7 $18 {[%emt 0:00:44]} Qxe7 {[%emt 0:03:05]} 43. Qxe7+ {[%emt 0:00:19]} Kxe7 {[%emt 0:00:02]} 44. Kc1 {[%emt 0:00:05]} 1-0

[Event "CIS Master Groups 2024"]
[Site "Vasto"]
[Date "2024.04.11"]
[Round "5.13"]
[White "Ceres, Dragos"]
[Black "Lodici, Lorenzo"]
[Result "0-1"]
[ECO "C55"]
[WhiteElo "2486"]
[BlackElo "2565"]
[Annotator "TA"]
[PlyCount "78"]
[EventDate "2024.04.07"]
[EventType "team-tourn"]
[EventCountry "ITA"]
[SourceTitle "playchess.com"]
[Source "ChessBase"]
[SourceQuality "1"]
[TimeControl "40/5400+30:900+30"]

{[%evp 9,78,32,30,22,20,19,12,1,13,-14,0,-10,0,-25,-26,-131,-116,-264,-234,-265,-265,-283,-269,-263,-187,-202,-208,-197,-199,-181,-188,-195,-200,-195,-197,-192,-192,-218,-224,-223,-202,-204,-184,-229,-242,-235,-237,-242,-233,-284,-214,-254,-238,-252,-171,-173,-174,-789,-762,-2606,-2361,-2095,-1166,-3900,-3660,-29988,-29989,-29989,-29989,-29989,-29990]} 1. e4 {[%emt 0:00:01]} e5 {[%emt 0:02:48]} 2. Nf3 {[%emt 0:00:06]} Nc6 {[%emt 0:00:04]} 3. Bc4 {[%emt 0:00:07]} Nf6 {[%emt 0:00:03]} 4. d3 {[%emt 0:00:07]} h6 {[%emt 0:00:05]} 5. c3 {[%emt 0:00:05]} g5 {[%emt 0:00:04]} 6. h3 {[%emt 0:00:20]} Bg7 {[%emt 0:00:40]} 7. Nbd2 {[%emt 0:00:07]} d5 {[%emt 0:00:06]} 8. Bb3 {[%emt 0:05:39] The position is equal.} Be6 {[%emt 0:01:11]} 9. Qe2 {[%emt 0:00:58]} a5 {[%emt 0:10:30]} 10. Ba4 {[%emt 0:10:17]} Nd7 {[%emt 0:00:16]} 11. Nf1 {[%emt 0:01:26]} Nc5 {[%emt 0:02:29]} 12. exd5 {[%emt 0:08:51]} (12. Bxc6+ $11 {remains equal.} bxc6 13. Ng3) 12... Qxd5 $17 {[%emt 0:05:20]} 13. Ne3 {[%emt 0:09:40]} (13. Bxc6+ $17 Qxc6 (13... bxc6 14. d4 $17) 14. Be3) 13... Qxd3 {[%emt 0:14:19]} 14. Bb5 {[%emt 0:01:18]} Qxe2+ {[%emt 0:01:39]} 15. Kxe2 {[%emt 0:00:05]} f5 {[%emt 0:03:57]} 16. Rd1 {[%emt 0:07:07]} Rd8 {[%emt 0:01:33]} 17. b3 {[%emt 0:08:32]} Rxd1 {[%emt 0:03:52]} 18. Nxd1 {[%emt 0:00:26]} Kf7 {[%emt 0:01:27]} 19. Bxc6 {[%emt 0:09:55]} bxc6 {[%emt 0:01:00]} 20. Ba3 {[%emt 0:00:11]} Nd7 {[%emt 0:07:06]} 21. Nb2 {[%emt 0:05:13]} Nb6 {[%emt 0:03:43]} 22. Bc5 {[%emt 0:16:46]} Nd5 {[%emt 0:02:07]} 23. Na4 {[%emt 0:00:20]} Rd8 {[%emt 0:03:48]} 24. Rc1 {[%emt 0:05:24]} Nf4+ {[%emt 0:02:03]} 25. Kf1 {[%emt 0:00:08] White is weak on the light squares} Bf6 {[%emt 0:00:54]} 26. Be3 {[%emt 0:05:30]} Nd3 {[%emt 0:02:12]} 27. Rd1 {[%emt 0:00:05]} f4 {[%emt 0:01:06]} 28. Ba7 {[%emt 0:00:16]} Bf5 {[%emt 0:01:09]} 29. Nd2 {[%emt 0:03:56]} e4 {[%emt 0:02:09]} 30. Nc4 {[%emt 0:00:22]} Be6 {[%emt 0:00:24]} 31. Nd2 {[%emt 0:01:50]} Nxf2 {[%emt 0:04:12]} 32. Kxf2 {[%emt 0:00:07] [#]} g4 $1 $36 {[%emt 0:00:37][%mdl 2048] Black has strong initiative.} 33. g3 $2 {[%emt 0:01:12]} (33. Nb2 e3+ (33... gxh3 $2 34. gxh3 e3+ 35. Bxe3 $19) 34. Bxe3 fxe3+ 35. Kxe3) 33... e3+ $19 {[%emt 0:00:59]} 34. Ke2 {[%emt 0:00:32]} gxh3 {[%emt 0:02:20]} 35. Bd4 {[%emt 0:00:25]} Bxd4 {[%emt 0:00:37]} 36. cxd4 {[%emt 0:00:14]} Rxd4 {[%emt 0:00:18] [#] ( -> ...Bg4+)} 37. Rf1 {[%emt 0:00:51]} Rxd2+ {[%emt 0:00:10] Black mates.} 38. Kf3 {[%emt 0:00:17]} Bd5+ {[%emt 0:00:17]} 39. Kxf4 {[%emt 0:00:06]} Rf2+ {[%emt 0:00:03] Black took control after the opening.   Weighted Error Value: White=0.82/Black=0.31.  Mistake:       	White=3     	---        Inaccurate:     	White=2     	Black=1      OK:         	White=7     	Black=16     Best:        	White=1     	---        Strong:       	---       	Black=1} 0-1

[Event "CIS Master Groups 2024"]
[Site "Vasto"]
[Date "2024.04.11"]
[Round "5.14"]
[White "Barp, Alberto"]
[Black "Lumachi, Gabriele"]
[Result "1/2-1/2"]
[ECO "D27"]
[WhiteElo "2470"]
[BlackElo "2413"]
[Annotator "TA"]
[PlyCount "69"]
[EventDate "2024.04.07"]
[EventType "team-tourn"]
[EventCountry "ITA"]
[SourceTitle "playchess.com"]
[Source "ChessBase"]
[SourceQuality "1"]
[TimeControl "40/5400+30:900+30"]

{[%evp 16,69,26,26,29,26,28,25,26,20,26,23,42,12,22,16,10,0,0,0,0,-1,23,10,38,44,32,22,8,3,13,13,15,6,35,0,0,0,0,0,0,0,0,0,0,0,0,0,0,0,0,0,0,0,0,0]} 1. d4 {[%emt 0:02:38]} d5 {[%emt 0:00:02]} 2. c4 {[%emt 0:00:34]} dxc4 {[%emt 0:00:05]} 3. Nf3 {[%emt 0:00:53]} Nf6 {[%emt 0:00:07]} 4. e3 {[%emt 0:00:06]} e6 {[%emt 0:00:11]} 5. Bxc4 {[%emt 0:00:08]} c5 {[%emt 0:00:10]} 6. O-O {[%emt 0:00:07]} a6 {[%emt 0:00:04]} 7. b3 {[%emt 0:02:12]} cxd4 {[%emt 0:00:27]} 8. Nxd4 {[%emt 0:01:53]} Be7 {[%emt 0:00:05]} 9. Bb2 {[%emt 0:00:27]} Bd7 {[%emt 0:02:33]} 10. Be2 {[%emt 0:12:16]} O-O {[%emt 0:03:45]} 11. Nd2 {[%emt 0:08:27]} Nc6 {[%emt 0:00:21] White has an edge.} 12. N4f3 {[%emt 0:00:13]} b5 {[%emt 0:08:40]} 13. Rc1 {[%emt 0:06:12]} Rc8 {[%emt 0:02:52]} 14. a3 {[%emt 0:10:25]} Qb6 {[%emt 0:08:50]} 15. Bd3 {[%emt 0:00:59]} Rfd8 {[%emt 0:01:26]} 16. Ne4 {[%emt 0:13:15]} Nxe4 {[%emt 0:11:23]} 17. Bxe4 {[%emt 0:00:09]} Be8 {[%emt 0:00:25]} 18. Qe2 {[%emt 0:01:43]} Qb8 {[%emt 0:12:48]} 19. Bb1 {[%emt 0:07:08]} Bf6 {[%emt 0:02:14]} 20. Bxf6 {[%emt 0:02:36]} gxf6 {[%emt 0:00:07]} 21. Qc2 {[%emt 0:08:41]} f5 {[%emt 0:00:16]} 22. Qb2 {[%emt 0:00:15]} Qd6 {[%emt 0:06:24]} 23. e4 {[%emt 0:03:00]} fxe4 $1 {[%emt 0:07:42]} 24. Bxe4 {[%emt 0:00:07]} f5 {[%emt 0:00:05]} 25. Bc2 {[%emt 0:09:20]} Bh5 {[%emt 0:03:20] [#] White must now prevent ...Bxf3. The position is equal.} 26. Rcd1 {[%emt 0:02:57]} Qe7 {[%emt 0:04:42] aiming for ...Bxf3.} 27. Rxd8+ {[%emt 0:00:44]} Rxd8 {[%emt 0:00:06]} 28. Qc3 {[%emt 0:04:29]} Bxf3 {[%emt 0:02:06]} 29. Qxf3 {[%emt 0:00:02]} Nd4 {[%emt 0:00:28]} 30. Qg3+ {[%emt 0:00:07]} Kh8 {[%emt 0:07:21]} 31. Bd1 {[%emt 0:00:59] Prevents Ne2+} Qxa3 {[%emt 0:09:06]} 32. Qe5+ {[%emt 0:00:12]} Kg8 {[%emt 0:00:04][%cal Oa3d6]} 33. Qg3+ {[%emt 0:00:21]} Kh8 {[%emt 0:00:05]} 34. Qe5+ {[%emt 0:00:03]} Kg8 {[%emt 0:00:03][%cal Oa3d6]} 35. Qg3+ {[%emt 0:00:23] Weighted Error Value: White=0.05 (flawless) /Black=0.03 (flawless) .  Inaccurate:     	White=2     	Black=1      OK:         	White=11    	Black=12     Best:        	White=3     	Black=1      Strong:       	---       	Black=1} 1/2-1/2